[Event "Titled Tuesday Blitz January 03 Late 2023"]
[White "Manukian, Artak"]
[Black "Ehlvest, Jaan"]
[WhiteFideId "13301373"]
[BlackFideId "4500016"]
[WhiteElo "2196"]
[BlackElo "2530"]
[Result "1-0"]
[Round "07"]
[TimeControl "180+2"]
[Date "2023.01.03"]
[WhiteClock "0:00:33"]
[BlackClock "0:00:02"]

1. e4 {[%clk 0:03:00]}  c5 {[%clk 0:02:44]} 2. Nf3 {[%clk 0:03:00]}  Nc6 {[%clk 0:02:43]} 3. c3 {[%clk 0:03:01]}  g5 {[%clk 0:02:36]} 4. Nxg5 {[%clk 0:02:49]}  d5 {[%clk 0:02:35]} 5. d3 {[%clk 0:02:39]}  Nf6 {[%clk 0:02:26]} 6. Qe2 {[%clk 0:02:31]}  h6 {[%clk 0:02:17]} 7. Nf3 {[%clk 0:02:30]}  Bg4 {[%clk 0:02:16]} 8. Nbd2 {[%clk 0:02:19]}  Bg7 {[%clk 0:02:10]} 9. h3 {[%clk 0:02:17]}  Bh5 {[%clk 0:02:09]} 10. g4 {[%clk 0:02:15]}  Bg6 {[%clk 0:02:09]} 11. Nh4 {[%clk 0:02:14]}  Qc7 {[%clk 0:01:34]} 12. Bg2 {[%clk 0:01:55]}  O-O-O {[%clk 0:01:32]} 13. Nxg6 {[%clk 0:01:46]}  fxg6 {[%clk 0:01:31]} 14. exd5 {[%clk 0:01:46]}  Nxd5 {[%clk 0:01:25]} 15. Qe6+ {[%clk 0:01:38]}  Kb8 {[%clk 0:01:10]} 16. Bxd5 {[%clk 0:01:36]}  Ne5 {[%clk 0:01:10]} 17. Be4 {[%clk 0:01:25]}  Rd6 {[%clk 0:00:54]} 18. Qb3 {[%clk 0:01:24]}  Nxd3+ {[%clk 0:00:52]} 19. Bxd3 {[%clk 0:01:21]}  Rxd3 {[%clk 0:00:52]} 20. Ke2 {[%clk 0:00:57]}  Rhd8 {[%clk 0:00:21]} 21. Qc4 {[%clk 0:00:57]}  Qc6 {[%clk 0:00:19]} 22. f3 {[%clk 0:00:49]}  Bf6 {[%clk 0:00:05]} 23. Ne4 {[%clk 0:00:41]}  Be5 {[%clk 0:00:03]} 24. Be3 {[%clk 0:00:34]}  b6 {[%clk 0:00:02]} 25. Rad1 {[%clk 0:00:33]} 1-0


[Site "https://www.chess.com"]

[Event "Titled Tuesday Blitz January 03 Late 2023"]
[White "Lorenzo De La Riva, Lazaro"]
[Black "Mendez Fortes, Eduardo Jesus"]
[WhiteFideId "2268809"]
[BlackFideId "3502376"]
[WhiteElo "2404"]
[BlackElo "2250"]
[Result "0-1"]
[Round "07"]
[TimeControl "180+2"]
[Date "2023.01.03"]
[WhiteClock "0:00:17"]
[BlackClock "0:00:12"]

1. d4 {[%clk 0:02:55]}  Nf6 {[%clk 0:02:59]} 2. Bg5 {[%clk 0:02:55]}  d5 {[%clk 0:02:59]} 3. e3 {[%clk 0:02:53]}  c5 {[%clk 0:02:57]} 4. Nc3 {[%clk 0:02:51]}  e6 {[%clk 0:02:53]} 5. Nf3 {[%clk 0:02:45]}  Nc6 {[%clk 0:02:53]} 6. Bb5 {[%clk 0:02:44]}  Qb6 {[%clk 0:02:52]} 7. O-O {[%clk 0:02:42]}  a6 {[%clk 0:02:52]} 8. Bxc6+ {[%clk 0:02:42]}  Qxc6 {[%clk 0:02:53]} 9. Ne5 {[%clk 0:02:42]}  Qc7 {[%clk 0:02:53]} 10. f4 {[%clk 0:02:41]}  b5 {[%clk 0:02:42]} 11. Bxf6 {[%clk 0:02:39]}  gxf6 {[%clk 0:02:42]} 12. Ng4 {[%clk 0:02:38]}  Be7 {[%clk 0:02:40]} 13. Ne2 {[%clk 0:02:38]}  h5 {[%clk 0:02:38]} 14. Nf2 {[%clk 0:02:37]}  Bb7 {[%clk 0:02:38]} 15. c3 {[%clk 0:02:36]}  O-O-O {[%clk 0:02:33]} 16. a4 {[%clk 0:02:35]}  c4 {[%clk 0:02:24]} 17. axb5 {[%clk 0:02:34]}  axb5 {[%clk 0:02:24]} 18. b4 {[%clk 0:02:27]}  Rdg8 {[%clk 0:02:18]} 19. Kh1 {[%clk 0:02:25]}  Rg7 {[%clk 0:02:06]} 20. Ra5 {[%clk 0:02:23]}  Qb6 {[%clk 0:02:04]} 21. Qa1 {[%clk 0:02:06]}  Qc6 {[%clk 0:02:04]} 22. Qb1 {[%clk 0:01:46]}  Rhg8 {[%clk 0:02:03]} 23. Rg1 {[%clk 0:01:44]}  Bd8 {[%clk 0:02:02]} 24. Ra2 {[%clk 0:01:43]}  Bc7 {[%clk 0:02:02]} 25. Qc2 {[%clk 0:01:41]}  Bb8 {[%clk 0:02:02]} 26. Nh3 {[%clk 0:01:40]}  Qd7 {[%clk 0:01:58]} 27. Ng3 {[%clk 0:01:36]}  h4 {[%clk 0:01:52]} 28. Nf1 {[%clk 0:01:33]}  e5 {[%clk 0:01:49]} 29. Qf2 {[%clk 0:01:27]}  Qg4 {[%clk 0:01:43]} 30. Nd2 {[%clk 0:01:21]}  e4 {[%clk 0:01:31]} 31. Raa1 {[%clk 0:01:17]}  Bc6 {[%clk 0:01:29]} 32. Ra6 {[%clk 0:01:15]}  Bd7 {[%clk 0:01:28]} 33. Rxf6 {[%clk 0:01:11]}  Qh5 {[%clk 0:01:26]} 34. Ng5 {[%clk 0:01:08]}  h3 {[%clk 0:01:14]} 35. g3 {[%clk 0:01:02]}  Bg4 {[%clk 0:01:09]} 36. Ra1 {[%clk 0:00:58]}  Rg6 {[%clk 0:00:49]} 37. Rxf7 {[%clk 0:00:56]}  Rc6 {[%clk 0:00:38]} 38. Rh7 {[%clk 0:00:43]}  Qg6 {[%clk 0:00:37]} 39. Ra5 {[%clk 0:00:37]}  Ra6 {[%clk 0:00:33]} 40. Rh4 {[%clk 0:00:28]}  Bd7 {[%clk 0:00:28]} 41. Rxa6 {[%clk 0:00:25]}  Qxa6 {[%clk 0:00:29]} 42. Qe1 {[%clk 0:00:24]}  Qa2 {[%clk 0:00:25]} 43. Kg1 {[%clk 0:00:24]}  Bc7 {[%clk 0:00:23]} 44. Nxh3 {[%clk 0:00:20]}  Kb7 {[%clk 0:00:19]} 45. Ng5 {[%clk 0:00:20]}  Qb2 {[%clk 0:00:19]} 46. Rh7 {[%clk 0:00:19]}  Ra8 {[%clk 0:00:18]} 47. Kf2 {[%clk 0:00:17]}  Ra1 {[%clk 0:00:18]} 48. Qe2 {[%clk 0:00:18]}  Rh1 {[%clk 0:00:18]} 49. Nf7 {[%clk 0:00:17]}  Qc1 {[%clk 0:00:13]} 50. Kg2 {[%clk 0:00:17]}  Qg1# {[%clk 0:00:12]} 0-1


[Site "https://www.chess.com"]

[Event "Titled Tuesday Blitz January 03 Late 2023"]
[White "Ortega Ruiz, Jose Miguel"]
[Black "Yurovskykh, Oleksandr"]
[WhiteFideId "2209713"]
[BlackFideId "14134020"]
[WhiteElo "2351"]
[BlackElo "2328"]
[Result "0-1"]
[Round "07"]
[TimeControl "180+2"]
[Date "2023.01.03"]
[WhiteClock "0:00:46"]
[BlackClock "0:00:40"]

1. g3 {[%clk 0:02:57]}  d5 {[%clk 0:02:59]} 2. Bg2 {[%clk 0:02:38]}  e5 {[%clk 0:02:59]} 3. d3 {[%clk 0:02:33]}  Nf6 {[%clk 0:02:54]} 4. a3 {[%clk 0:02:31]}  c5 {[%clk 0:02:53]} 5. Nd2 {[%clk 0:02:30]}  Nc6 {[%clk 0:02:51]} 6. e4 {[%clk 0:02:30]}  Be7 {[%clk 0:02:47]} 7. Ne2 {[%clk 0:02:29]}  d4 {[%clk 0:02:40]} 8. O-O {[%clk 0:02:29]}  h5 {[%clk 0:02:40]} 9. h4 {[%clk 0:02:28]}  Be6 {[%clk 0:02:23]} 10. Nf3 {[%clk 0:02:27]}  Ng4 {[%clk 0:02:19]} 11. c3 {[%clk 0:02:23]}  f6 {[%clk 0:02:18]} 12. b4 {[%clk 0:02:21]}  b6 {[%clk 0:02:11]} 13. bxc5 {[%clk 0:02:18]}  bxc5 {[%clk 0:02:12]} 14. cxd4 {[%clk 0:02:17]}  cxd4 {[%clk 0:02:12]} 15. Qa4 {[%clk 0:02:15]}  Qd7 {[%clk 0:02:12]} 16. Bd2 {[%clk 0:02:15]}  O-O {[%clk 0:02:08]} 17. Rfc1 {[%clk 0:02:14]}  Rfc8 {[%clk 0:02:04]} 18. Rab1 {[%clk 0:02:11]}  Nd8 {[%clk 0:01:54]} 19. Rxc8 {[%clk 0:02:08]}  Rxc8 {[%clk 0:01:52]} 20. Qxd7 {[%clk 0:02:07]}  Bxd7 {[%clk 0:01:53]} 21. Bb4 {[%clk 0:01:52]}  Rb8 {[%clk 0:01:40]} 22. Rc1 {[%clk 0:01:48]}  Bxb4 {[%clk 0:01:40]} 23. axb4 {[%clk 0:01:49]}  Rxb4 {[%clk 0:01:40]} 24. Ra1 {[%clk 0:01:27]}  Nc6 {[%clk 0:01:29]} 25. Bf1 {[%clk 0:01:25]}  a5 {[%clk 0:01:25]} 26. Nc1 {[%clk 0:01:23]}  Kf8 {[%clk 0:01:21]} 27. Nd2 {[%clk 0:01:22]}  Be6 {[%clk 0:01:18]} 28. Be2 {[%clk 0:01:18]}  Rb2 {[%clk 0:01:16]} 29. Bxg4 {[%clk 0:01:17]}  hxg4 {[%clk 0:01:16]} 30. Nc4 {[%clk 0:01:14]}  Bxc4 {[%clk 0:01:16]} 31. dxc4 {[%clk 0:01:15]}  Rc2 {[%clk 0:01:08]} 32. Nb3 {[%clk 0:01:12]}  Rxc4 {[%clk 0:01:04]} 33. Nxa5 {[%clk 0:01:12]}  Nxa5 {[%clk 0:01:05]} 34. Rxa5 {[%clk 0:01:13]}  Rc1+ {[%clk 0:01:05]} 35. Kg2 {[%clk 0:01:13]}  Re1 {[%clk 0:01:06]} 36. Ra7 {[%clk 0:00:52]}  Rxe4 {[%clk 0:01:06]} 37. Kf1 {[%clk 0:00:52]}  d3 {[%clk 0:01:01]} 38. Rd7 {[%clk 0:00:52]}  Rd4 {[%clk 0:00:58]} 39. Rxd4 {[%clk 0:00:45]}  exd4 {[%clk 0:00:59]} 40. Ke1 {[%clk 0:00:45]}  Ke7 {[%clk 0:00:59]} 41. Kd2 {[%clk 0:00:46]}  Ke6 {[%clk 0:01:00]} 42. Kxd3 {[%clk 0:00:47]}  Kd5 {[%clk 0:01:00]} 43. Ke2 {[%clk 0:00:41]}  Ke4 {[%clk 0:01:00]} 44. Kd2 {[%clk 0:00:39]}  Kf3 {[%clk 0:01:01]} 45. Ke1 {[%clk 0:00:39]}  d3 {[%clk 0:01:01]} 46. Kd2 {[%clk 0:00:40]}  Kxf2 {[%clk 0:01:02]} 47. Kxd3 {[%clk 0:00:41]}  Kxg3 {[%clk 0:01:03]} 48. h5 {[%clk 0:00:41]}  Kh4 {[%clk 0:01:03]} 49. h6 {[%clk 0:00:41]}  gxh6 {[%clk 0:01:04]} 50. Ke2 {[%clk 0:00:40]}  Kg5 {[%clk 0:01:05]} 51. Kf2 {[%clk 0:00:41]}  h5 {[%clk 0:01:06]} 52. Kg2 {[%clk 0:00:42]}  h4 {[%clk 0:01:06]} 53. Kh1 {[%clk 0:00:42]}  f5 {[%clk 0:01:07]} 54. Kg1 {[%clk 0:00:43]}  f4 {[%clk 0:01:08]} 55. Kh1 {[%clk 0:00:44]}  f3 {[%clk 0:01:05]} 56. Kg1 {[%clk 0:00:45]}  Kf4 {[%clk 0:01:06]} 57. Kh1 {[%clk 0:00:46]}  g3 {[%clk 0:01:02]} 58. Kg1 {[%clk 0:00:46]}  Kg4 {[%clk 0:01:02]} 59. Kh1 {[%clk 0:00:46]}  h3 {[%clk 0:00:42]} 60. Kg1 {[%clk 0:00:47]}  f2+ {[%clk 0:00:42]} 61. Kf1 {[%clk 0:00:47]}  Kf4 {[%clk 0:00:42]} 62. Ke2 {[%clk 0:00:46]}  h2 {[%clk 0:00:40]} 0-1


[Site "https://www.chess.com"]

[Event "Titled Tuesday Blitz January 03 Late 2023"]
[White "Chernov, Mikhail"]
[Black "Berezin, Viktor"]
[WhiteFideId "24143170"]
[BlackFideId "14107872"]
[WhiteElo "2205"]
[BlackElo "2307"]
[Result "1-0"]
[Round "07"]
[TimeControl "180+2"]
[Date "2023.01.03"]
[WhiteClock "0:00:08"]
[BlackClock "0:00:07"]

1. e4 {[%clk 0:03:00]}  g6 {[%clk 0:02:55]} 2. d4 {[%clk 0:03:00]}  Bg7 {[%clk 0:02:53]} 3. Nc3 {[%clk 0:03:01]}  d6 {[%clk 0:02:53]} 4. Be3 {[%clk 0:03:01]}  Nf6 {[%clk 0:02:54]} 5. Qd2 {[%clk 0:03:00]}  O-O {[%clk 0:02:54]} 6. O-O-O {[%clk 0:03:00]}  c6 {[%clk 0:02:52]} 7. f3 {[%clk 0:03:00]}  b5 {[%clk 0:02:52]} 8. Bh6 {[%clk 0:03:00]}  Qa5 {[%clk 0:02:48]} 9. Kb1 {[%clk 0:03:00]}  e5 {[%clk 0:02:46]} 10. dxe5 {[%clk 0:02:35]}  dxe5 {[%clk 0:02:47]} 11. h4 {[%clk 0:02:26]}  b4 {[%clk 0:02:46]} 12. Nce2 {[%clk 0:02:26]}  Be6 {[%clk 0:02:46]} 13. Nc1 {[%clk 0:02:26]}  Nbd7 {[%clk 0:02:32]} 14. h5 {[%clk 0:02:10]}  Rad8 {[%clk 0:02:14]} 15. hxg6 {[%clk 0:02:01]}  fxg6 {[%clk 0:02:13]} 16. Bxg7 {[%clk 0:02:01]}  Kxg7 {[%clk 0:02:13]} 17. Qh6+ {[%clk 0:02:00]}  Kg8 {[%clk 0:02:13]} 18. Nh3 {[%clk 0:01:57]}  Nb6 {[%clk 0:01:49]} 19. Rxd8 {[%clk 0:01:50]}  Rxd8 {[%clk 0:01:50]} 20. Ng5 {[%clk 0:01:50]}  Bxa2+ {[%clk 0:00:53]} 21. Nxa2 {[%clk 0:01:48]}  b3 {[%clk 0:00:53]} 22. Nc3 {[%clk 0:00:48]}  Rd2 {[%clk 0:00:41]} 23. Bd3 {[%clk 0:00:40]}  bxc2+ {[%clk 0:00:35]} 24. Bxc2 {[%clk 0:00:38]}  Rd7 {[%clk 0:00:05]} 25. Bb3+ {[%clk 0:00:29]}  Nbd5 {[%clk 0:00:05]} 26. exd5 {[%clk 0:00:25]}  cxd5 {[%clk 0:00:06]} 27. Ne6 {[%clk 0:00:19]}  Rf7 {[%clk 0:00:05]} 28. Qd2 {[%clk 0:00:12]}  Qb6 {[%clk 0:00:04]} 29. Ng5 {[%clk 0:00:09]}  Rb7 {[%clk 0:00:02]} 30. Bxd5+ {[%clk 0:00:08]}  Nxd5 {[%clk 0:00:01]} 31. Qxd5+ {[%clk 0:00:09]}  Kf8 {[%clk 0:00:02]} 32. Nxh7+ {[%clk 0:00:04]}  Ke8 {[%clk 0:00:02]} 33. Qg8+ {[%clk 0:00:03]}  Kd7 {[%clk 0:00:02]} 34. Rd1+ {[%clk 0:00:03]}  Kc6 {[%clk 0:00:02]} 35. Qd5+ {[%clk 0:00:03]}  Kc7 {[%clk 0:00:02]} 36. Qd8+ {[%clk 0:00:04]}  Kc6 {[%clk 0:00:02]} 37. Rd6+ {[%clk 0:00:04]}  Kc5 {[%clk 0:00:03]} 38. Rxb6 {[%clk 0:00:05]}  Rxb6 {[%clk 0:00:04]} 39. Qd3 {[%clk 0:00:05]}  Kb4 {[%clk 0:00:04]} 40. Nd5+ {[%clk 0:00:05]}  Kc5 {[%clk 0:00:04]} 41. Nxb6 {[%clk 0:00:06]}  axb6 {[%clk 0:00:05]} 42. Qxg6 {[%clk 0:00:07]}  b5 {[%clk 0:00:06]} 43. Qe4 {[%clk 0:00:07]}  b4 {[%clk 0:00:06]} 44. Nf6 {[%clk 0:00:08]}  Kb5 {[%clk 0:00:07]} 45. Qxe5+ {[%clk 0:00:08]}  Ka4 {[%clk 0:00:07]} 46. Qd4 {[%clk 0:00:08]} 1-0


[Site "https://www.chess.com"]

[Event "Titled Tuesday Blitz January 03 Late 2023"]
[White "Schmidt, Harald"]
[Black "Blanco Acevedo, Cristobal Jose"]
[WhiteFideId "4648358"]
[BlackFideId "3900525"]
[WhiteElo "2347"]
[BlackElo "2310"]
[Result "1/2-1/2"]
[Round "07"]
[TimeControl "180+2"]
[Date "2023.01.03"]
[WhiteClock "0:00:08"]
[BlackClock "0:01:31"]

1. c4 {[%clk 0:03:00]}  e6 {[%clk 0:02:59]} 2. b3 {[%clk 0:02:57]}  d5 {[%clk 0:02:59]} 3. Bb2 {[%clk 0:02:57]}  c5 {[%clk 0:02:59]} 4. Qc1 {[%clk 0:02:55]}  d4 {[%clk 0:02:58]} 5. g3 {[%clk 0:02:49]}  Nf6 {[%clk 0:02:55]} 6. Bg2 {[%clk 0:02:48]}  e5 {[%clk 0:02:55]} 7. d3 {[%clk 0:02:47]}  Bd6 {[%clk 0:02:54]} 8. Na3 {[%clk 0:02:46]}  O-O {[%clk 0:02:52]} 9. Nc2 {[%clk 0:02:45]}  Qc7 {[%clk 0:02:49]} 10. e4 {[%clk 0:02:42]}  Nc6 {[%clk 0:02:47]} 11. Ne2 {[%clk 0:02:40]}  a6 {[%clk 0:02:42]} 12. O-O {[%clk 0:02:37]}  b5 {[%clk 0:02:42]} 13. cxb5 {[%clk 0:02:25]}  axb5 {[%clk 0:02:41]} 14. a4 {[%clk 0:02:25]}  bxa4 {[%clk 0:02:38]} 15. bxa4 {[%clk 0:02:22]}  Be6 {[%clk 0:02:38]} 16. f4 {[%clk 0:02:01]}  Bb3 {[%clk 0:02:36]} 17. Na3 {[%clk 0:01:48]}  Rxa4 {[%clk 0:02:34]} 18. Nc4 {[%clk 0:01:44]}  Rxa1 {[%clk 0:02:33]} 19. Bxa1 {[%clk 0:01:44]}  Ra8 {[%clk 0:02:05]} 20. Bb2 {[%clk 0:01:43]}  Nb4 {[%clk 0:02:01]} 21. fxe5 {[%clk 0:01:12]}  Bxe5 {[%clk 0:02:00]} 22. Nxe5 {[%clk 0:01:11]}  Qxe5 {[%clk 0:02:00]} 23. Nf4 {[%clk 0:01:11]}  Ra2 {[%clk 0:01:55]} 24. Bh3 {[%clk 0:00:49]}  g5 {[%clk 0:01:54]} 25. Nh5 {[%clk 0:00:19]}  Nxh5 {[%clk 0:01:48]} 26. Rf5 {[%clk 0:00:19]}  Nxd3 {[%clk 0:01:39]} 27. Qxg5+ {[%clk 0:00:17]}  Qg7 {[%clk 0:01:39]} 28. Qd8+ {[%clk 0:00:15]}  Qf8 {[%clk 0:01:37]} 29. Rg5+ {[%clk 0:00:14]}  Ng7 {[%clk 0:01:37]} 30. Rxg7+ {[%clk 0:00:14]}  Kxg7 {[%clk 0:01:34]} 31. Qg5+ {[%clk 0:00:13]}  Kh8 {[%clk 0:01:34]} 32. Qf6+ {[%clk 0:00:13]}  Kg8 {[%clk 0:01:34]} 33. Qg5+ {[%clk 0:00:12]}  Qg7 {[%clk 0:01:33]} 34. Qd8+ {[%clk 0:00:12]}  Qf8 {[%clk 0:01:34]} 35. Qg5+ {[%clk 0:00:12]}  Kh8 {[%clk 0:01:34]} 36. Qf6+ {[%clk 0:00:11]}  Qg7 {[%clk 0:01:34]} 37. Qd8+ {[%clk 0:00:11]}  Qg8 {[%clk 0:01:34]} 38. Qf6+ {[%clk 0:00:11]}  Qg7 {[%clk 0:01:35]} 39. Qd8+ {[%clk 0:00:10]}  Qg8 {[%clk 0:01:35]} 40. Bxd4+ {[%clk 0:00:10]}  cxd4 {[%clk 0:01:30]} 41. Qf6+ {[%clk 0:00:09]}  Qg7 {[%clk 0:01:30]} 42. Qd8+ {[%clk 0:00:09]}  Qg8 {[%clk 0:01:30]} 43. Qf6+ {[%clk 0:00:09]}  Qg7 {[%clk 0:01:31]} 44. Qd8+ {[%clk 0:00:08]}  Qg8 {[%clk 0:01:31]} 1/2-1/2


[Site "https://www.chess.com"]

[Event "Titled Tuesday Blitz January 03 Late 2023"]
[White "Rosen, Eric"]
[Black "Sreyas Payyappat"]
[WhiteFideId "2032562"]
[BlackFideId "46674969"]
[WhiteElo "2349"]
[BlackElo "2076"]
[Result "1-0"]
[Round "07"]
[TimeControl "180+2"]
[Date "2023.01.03"]
[WhiteClock "0:00:31"]
[BlackClock "0:00:17"]

1. d4 {[%clk 0:02:53]}  Nf6 {[%clk 0:02:59]} 2. Bf4 {[%clk 0:02:53]}  c5 {[%clk 0:02:59]} 3. e3 {[%clk 0:02:53]}  e6 {[%clk 0:02:58]} 4. Nf3 {[%clk 0:02:53]}  Nc6 {[%clk 0:02:59]} 5. Nc3 {[%clk 0:02:53]}  cxd4 {[%clk 0:02:53]} 6. exd4 {[%clk 0:02:53]}  Bb4 {[%clk 0:02:52]} 7. Bd3 {[%clk 0:02:53]}  d5 {[%clk 0:02:46]} 8. O-O {[%clk 0:02:45]}  O-O {[%clk 0:02:46]} 9. Ne2 {[%clk 0:02:45]}  Re8 {[%clk 0:02:45]} 10. c3 {[%clk 0:02:40]}  Bd6 {[%clk 0:02:46]} 11. Re1 {[%clk 0:02:38]}  Qc7 {[%clk 0:02:43]} 12. Qd2 {[%clk 0:02:39]}  Bd7 {[%clk 0:02:39]} 13. h3 {[%clk 0:02:39]}  e5 {[%clk 0:02:39]} 14. dxe5 {[%clk 0:02:38]}  Nxe5 {[%clk 0:02:40]} 15. Nxe5 {[%clk 0:02:38]}  Bxe5 {[%clk 0:02:41]} 16. Bxe5 {[%clk 0:02:38]}  Qxe5 {[%clk 0:02:41]} 17. Nd4 {[%clk 0:02:37]}  Qh5 {[%clk 0:02:36]} 18. Qf4 {[%clk 0:02:33]}  h6 {[%clk 0:02:18]} 19. Qg3 {[%clk 0:02:18]}  Ne4 {[%clk 0:02:15]} 20. Qf4 {[%clk 0:02:10]}  Qg6 {[%clk 0:02:11]} 21. f3 {[%clk 0:01:59]}  Qf6 {[%clk 0:01:33]} 22. Qxf6 {[%clk 0:01:56]}  Nxf6 {[%clk 0:01:34]} 23. Kf2 {[%clk 0:01:53]}  Kf8 {[%clk 0:01:28]} 24. Bc2 {[%clk 0:01:52]}  Rxe1 {[%clk 0:01:23]} 25. Rxe1 {[%clk 0:01:51]}  Re8 {[%clk 0:01:24]} 26. Rd1 {[%clk 0:01:52]}  Ke7 {[%clk 0:01:21]} 27. Bb3 {[%clk 0:01:50]}  Bc6 {[%clk 0:01:18]} 28. Nf5+ {[%clk 0:01:44]}  Kf8 {[%clk 0:01:17]} 29. Ne3 {[%clk 0:01:43]}  Re5 {[%clk 0:01:13]} 30. Rd4 {[%clk 0:01:29]}  Ke7 {[%clk 0:00:58]} 31. Bc2 {[%clk 0:01:24]}  Ke6 {[%clk 0:00:54]} 32. f4 {[%clk 0:01:07]}  Ne4+ {[%clk 0:00:40]} 33. Kf3 {[%clk 0:01:02]}  Rh5 {[%clk 0:00:40]} 34. c4 {[%clk 0:00:56]}  Nf6 {[%clk 0:00:32]} 35. cxd5+ {[%clk 0:00:47]}  Nxd5 {[%clk 0:00:23]} 36. Bb3 {[%clk 0:00:45]}  Kd6 {[%clk 0:00:20]} 37. f5 {[%clk 0:00:35]}  Ke5 {[%clk 0:00:20]} 38. Rxd5+ {[%clk 0:00:31]}  Bxd5+ {[%clk 0:00:20]} 39. Bxd5 {[%clk 0:00:32]}  g6 {[%clk 0:00:18]} 40. Bxf7 {[%clk 0:00:31]}  Kf6 {[%clk 0:00:17]} 41. Bxg6 {[%clk 0:00:31]}  Rg5 {[%clk 0:00:17]} 42. h4 {[%clk 0:00:31]} 1-0


[Site "https://www.chess.com"]

[Event "Titled Tuesday Blitz January 03 Late 2023"]
[White "Fiorito, Francisco"]
[Black "Kaplan, Avi Harrison"]
[WhiteFideId "180165"]
[BlackFideId "30934559"]
[WhiteElo "2305"]
[BlackElo "2146"]
[Result "1/2-1/2"]
[Round "07"]
[TimeControl "180+2"]
[Date "2023.01.03"]
[WhiteClock "0:00:44"]
[BlackClock "0:00:10"]

1. e4 {[%clk 0:03:00]}  c5 {[%clk 0:02:56]} 2. d3 {[%clk 0:03:00]}  e5 {[%clk 0:02:53]} 3. g3 {[%clk 0:03:00]}  Nc6 {[%clk 0:02:53]} 4. Bg2 {[%clk 0:03:00]}  d6 {[%clk 0:02:53]} 5. f4 {[%clk 0:03:00]}  Nf6 {[%clk 0:02:50]} 6. Nf3 {[%clk 0:03:00]}  Be7 {[%clk 0:02:51]} 7. O-O {[%clk 0:03:00]}  O-O {[%clk 0:02:50]} 8. c3 {[%clk 0:02:59]}  b5 {[%clk 0:02:33]} 9. h3 {[%clk 0:02:57]}  Bb7 {[%clk 0:02:31]} 10. Be3 {[%clk 0:02:56]}  a5 {[%clk 0:02:31]} 11. Nbd2 {[%clk 0:02:56]}  Re8 {[%clk 0:02:18]} 12. g4 {[%clk 0:02:50]}  d5 {[%clk 0:02:08]} 13. fxe5 {[%clk 0:02:45]}  Nd7 {[%clk 0:02:08]} 14. exd5 {[%clk 0:02:45]}  Ncxe5 {[%clk 0:02:08]} 15. Nxe5 {[%clk 0:02:45]}  Nxe5 {[%clk 0:02:08]} 16. d4 {[%clk 0:02:35]}  cxd4 {[%clk 0:01:54]} 17. Bxd4 {[%clk 0:02:36]}  Bf6 {[%clk 0:01:36]} 18. Ne4 {[%clk 0:02:35]}  Bh4 {[%clk 0:01:23]} 19. Bf2 {[%clk 0:02:21]}  Bxf2+ {[%clk 0:01:21]} 20. Rxf2 {[%clk 0:02:22]}  Nc4 {[%clk 0:01:12]} 21. Nc5 {[%clk 0:02:16]}  Ne3 {[%clk 0:01:03]} 22. Nxb7 {[%clk 0:01:39]}  Nxd1 {[%clk 0:00:39]} 23. Nxd8 {[%clk 0:01:39]}  Nxf2 {[%clk 0:00:39]} 24. Nc6 {[%clk 0:01:39]}  Ne4 {[%clk 0:00:40]} 25. Bxe4 {[%clk 0:01:33]}  Rxe4 {[%clk 0:00:41]} 26. d6 {[%clk 0:01:34]}  Re6 {[%clk 0:00:34]} 27. Rd1 {[%clk 0:01:33]}  Kf8 {[%clk 0:00:35]} 28. d7 {[%clk 0:01:24]}  Rxc6 {[%clk 0:00:34]} 29. d8=Q+ {[%clk 0:01:24]}  Rxd8 {[%clk 0:00:34]} 30. Rxd8+ {[%clk 0:01:24]}  Ke7 {[%clk 0:00:33]} 31. Rd5 {[%clk 0:00:59]}  b4 {[%clk 0:00:27]} 32. cxb4 {[%clk 0:00:58]}  axb4 {[%clk 0:00:26]} 33. Rd4 {[%clk 0:00:56]}  Rc1+ {[%clk 0:00:26]} 34. Kf2 {[%clk 0:00:54]}  Rc2+ {[%clk 0:00:26]} 35. Kg3 {[%clk 0:00:54]}  Rxb2 {[%clk 0:00:27]} 36. h4 {[%clk 0:00:55]}  Rxa2 {[%clk 0:00:26]} 37. Rxb4 {[%clk 0:00:54]}  g6 {[%clk 0:00:25]} 38. Rb7+ {[%clk 0:00:51]}  Kf6 {[%clk 0:00:25]} 39. g5+ {[%clk 0:00:51]}  Kg7 {[%clk 0:00:23]} 40. Kg4 {[%clk 0:00:50]}  Ra4+ {[%clk 0:00:23]} 41. Kg3 {[%clk 0:00:50]}  Ra3+ {[%clk 0:00:23]} 42. Kg4 {[%clk 0:00:50]}  Ra5 {[%clk 0:00:24]} 43. Re7 {[%clk 0:00:49]}  Rf5 {[%clk 0:00:23]} 44. h5 {[%clk 0:00:50]}  Ra5 {[%clk 0:00:20]} 45. h6+ {[%clk 0:00:50]}  Kf8 {[%clk 0:00:20]} 46. Rb7 {[%clk 0:00:50]}  Ra4+ {[%clk 0:00:19]} 47. Kg3 {[%clk 0:00:51]}  Ra5 {[%clk 0:00:18]} 48. Rb8+ {[%clk 0:00:51]}  Ke7 {[%clk 0:00:18]} 49. Kg4 {[%clk 0:00:52]}  Ra4+ {[%clk 0:00:19]} 50. Kf3 {[%clk 0:00:52]}  Ra5 {[%clk 0:00:18]} 51. Kf4 {[%clk 0:00:52]}  Ra4+ {[%clk 0:00:18]} 52. Ke5 {[%clk 0:00:51]}  Ra5+ {[%clk 0:00:16]} 53. Kf4 {[%clk 0:00:51]}  Ra4+ {[%clk 0:00:16]} 54. Kg3 {[%clk 0:00:46]}  Ra5 {[%clk 0:00:15]} 55. Kh4 {[%clk 0:00:44]}  Ra4+ {[%clk 0:00:10]} 56. Kg3 {[%clk 0:00:44]}  Ra5 {[%clk 0:00:10]} 1/2-1/2


[Site "https://www.chess.com"]